[Event "*** Titled Tuesday Blitz"]
[Site "Chess.com"]
[Date "2021.03.09"]
[Round "5"]
[White "Fore_Man"]
[Black "InitiatingASC"]
[Result "1/2-1/2"]
[WhiteElo "2283"]
[BlackElo "2424"]
[TimeControl "180+1"]
[EndTime "11:01:54 PST"]
[Termination "Game drawn by 50-move rule"]

1. d4 {[%clk 0:03:00.9]} 1... Nf6 {[%clk 0:02:59.4]} 2. c4 {[%clk 0:02:57.4]}
2... g6 {[%clk 0:02:59.8]} 3. Nc3 {[%clk 0:02:56.9]} 3... Bg7 {[%clk 0:03:00.4]}
4. e4 {[%clk 0:02:57.2]} 4... d6 {[%clk 0:03:00.8]} 5. Nf3 {[%clk 0:02:54.4]}
5... O-O {[%clk 0:03:00.9]} 6. h3 {[%clk 0:02:54.9]} 6... Nc6 {[%clk 0:02:57.1]}
7. Bg5 {[%clk 0:02:52.1]} 7... a6 {[%clk 0:02:56.8]} 8. Be2 {[%clk 0:02:48.1]}
8... Na5 {[%clk 0:02:44.9]} 9. b4 {[%clk 0:02:35.6]} 9... Nc6 {[%clk 0:02:44.4]}
10. Rb1 {[%clk 0:02:33.7]} 10... b5 {[%clk 0:02:39.4]} 11. cxb5 {[%clk
0:02:25.8]} 11... axb5 {[%clk 0:02:40.3]} 12. Bxb5 {[%clk 0:02:24.6]} 12... Bb7
{[%clk 0:02:40.8]} 13. O-O {[%clk 0:02:18.1]} 13... Na7 {[%clk 0:02:39.2]} 14.
Bd3 {[%clk 0:02:16.3]} 14... h6 {[%clk 0:02:31.1]} 15. Be3 {[%clk 0:02:14]}
15... d5 {[%clk 0:02:16.5]} 16. e5 {[%clk 0:02:10.3]} 16... Ne4 {[%clk
0:02:16.8]} 17. Bxe4 {[%clk 0:02:07.3]} 17... dxe4 {[%clk 0:02:17.7]} 18. Nd2
{[%clk 0:02:06.9]} 18... Ba6 {[%clk 0:02:06.5]} 19. Ndxe4 {[%clk 0:02:01.4]}
19... Bxf1 {[%clk 0:02:05.7]} 20. Qxf1 {[%clk 0:02:00.6]} 20... Nc8 {[%clk
0:02:01.3]} 21. a4 {[%clk 0:01:57.8]} 21... Nb6 {[%clk 0:02:00.1]} 22. a5 {[%clk
0:01:55.8]} 22... Nd5 {[%clk 0:02:00.4]} 23. Qc4 {[%clk 0:01:51]} 23... e6
{[%clk 0:01:55.9]} 24. a6 {[%clk 0:01:40.3]} 24... Qd7 {[%clk 0:01:50]} 25. Nc5
{[%clk 0:01:36]} 25... Qc6 {[%clk 0:01:41.7]} 26. b5 {[%clk 0:01:33.2]} 26...
Nxe3 {[%clk 0:01:41.5]} 27. fxe3 {[%clk 0:01:30.6]} 27... Qe8 {[%clk 0:01:31]}
28. N3e4 {[%clk 0:01:20.4]} 28... Kh7 {[%clk 0:01:29.1]} 29. Rf1 {[%clk
0:01:19.4]} 29... Qc8 {[%clk 0:01:23]} 30. Nf6+ {[%clk 0:01:16.4]} 30... Bxf6
{[%clk 0:01:19.9]} 31. Rxf6 {[%clk 0:01:12.8]} 31... Kg7 {[%clk 0:01:17.3]} 32.
Rf1 {[%clk 0:01:04.8]} 32... Qd8 {[%clk 0:01:17.7]} 33. Ne4 {[%clk 0:00:44.5]}
33... Qd5 {[%clk 0:01:15.5]} 34. Qxd5 {[%clk 0:00:41.3]} 34... exd5 {[%clk
0:01:15.6]} 35. Nc3 {[%clk 0:00:41.2]} 35... c6 {[%clk 0:01:10.8]} 36. bxc6
{[%clk 0:00:23.5]} 36... Rxa6 {[%clk 0:01:10.9]} 37. c7 {[%clk 0:00:19.5]} 37...
Ra5 {[%clk 0:01:02.8]} 38. Rf6 {[%clk 0:00:19.4]} 38... Rc8 {[%clk 0:00:58.6]}
39. Rc6 {[%clk 0:00:19.8]} 39... Kf8 {[%clk 0:00:57.8]} 40. Kf2 {[%clk
0:00:16.4]} 40... Ke7 {[%clk 0:00:58.1]} 41. Kf3 {[%clk 0:00:16.7]} 41... Kd7
{[%clk 0:00:58.6]} 42. Rf6 {[%clk 0:00:12.5]} 42... Rxc7 {[%clk 0:00:48.5]} 43.
Rxf7+ {[%clk 0:00:12.3]} 43... Kd8 {[%clk 0:00:49.2]} 44. Rxc7 {[%clk
0:00:09.2]} 44... Kxc7 {[%clk 0:00:50.1]} 45. Kf4 {[%clk 0:00:07.1]} 45... Kc6
{[%clk 0:00:48.4]} 46. h4 {[%clk 0:00:05.3]} 46... Ra3 {[%clk 0:00:46.5]} 47.
Ne2 {[%clk 0:00:04.9]} 47... Ra2 {[%clk 0:00:46.1]} 48. Kf3 {[%clk 0:00:05.1]}
48... Rc2 {[%clk 0:00:42.1]} 49. Nf4 {[%clk 0:00:05.3]} 49... g5 {[%clk
0:00:41.9]} 50. hxg5 {[%clk 0:00:05.4]} 50... hxg5 {[%clk 0:00:42.5]} 51. Nh3
{[%clk 0:00:02.6]} 51... g4+ {[%clk 0:00:42]} 52. Kxg4 {[%clk 0:00:02.9]} 52...
Rxg2+ {[%clk 0:00:42.7]} 53. Kf4 {[%clk 0:00:02.8]} 53... Kd7 {[%clk 0:00:36.9]}
54. Ng5 {[%clk 0:00:03.3]} 54... Rf2+ {[%clk 0:00:35.5]} 55. Nf3 {[%clk
0:00:03.6]} 55... Ke6 {[%clk 0:00:34.7]} 56. e4 {[%clk 0:00:03.7]} 56... Rf1
{[%clk 0:00:32.4]} 57. Ke3 {[%clk 0:00:01.6]} 57... dxe4 {[%clk 0:00:20.7]} 58.
Kxe4 {[%clk 0:00:01.8]} 58... Ra1 {[%clk 0:00:21.6]} 59. Ng5+ {[%clk 0:00:01.8]}
59... Ke7 {[%clk 0:00:21.7]} 60. d5 {[%clk 0:00:02]} 60... Re1+ {[%clk
0:00:21.1]} 61. Kf5 {[%clk 0:00:02.3]} 61... Rf1+ {[%clk 0:00:20.8]} 62. Ke4
{[%clk 0:00:02.6]} 62... Rg1 {[%clk 0:00:20.1]} 63. Nf3 {[%clk 0:00:02.4]} 63...
Ra1 {[%clk 0:00:19.9]} 64. d6+ {[%clk 0:00:01.7]} 64... Kd7 {[%clk 0:00:20.1]}
65. Nd4 {[%clk 0:00:02.2]} 65... Ra4 {[%clk 0:00:18.9]} 66. Kd5 {[%clk 0:00:02]}
66... Ra5+ {[%clk 0:00:17.5]} 67. Kc4 {[%clk 0:00:02.5]} 67... Rxe5 {[%clk
0:00:16.1]} 68. Nb5 {[%clk 0:00:02]} 68... Re4+ {[%clk 0:00:15.8]} 69. Kc5
{[%clk 0:00:02.5]} 69... Rh4 {[%clk 0:00:15.4]} 70. Nd4 {[%clk 0:00:02.2]} 70...
Rh5+ {[%clk 0:00:15.8]} 71. Kc4 {[%clk 0:00:02.4]} 71... Kxd6 {[%clk 0:00:16.1]}
72. Nb5+ {[%clk 0:00:02.2]} 72... Ke5 {[%clk 0:00:15.4]} 73. Nc3 {[%clk
0:00:02.7]} 73... Rh8 {[%clk 0:00:14.2]} 74. Kd3 {[%clk 0:00:03]} 74... Rh3+
{[%clk 0:00:13.3]} 75. Kd2 {[%clk 0:00:03.2]} 75... Kd4 {[%clk 0:00:12.7]} 76.
Ne2+ {[%clk 0:00:03.8]} 76... Kc4 {[%clk 0:00:12.9]} 77. Kc2 {[%clk 0:00:03.6]}
77... Rh2 {[%clk 0:00:13.1]} 78. Kd2 {[%clk 0:00:04.2]} 78... Rg2 {[%clk
0:00:12.6]} 79. Kd1 {[%clk 0:00:04.2]} 79... Rg8 {[%clk 0:00:08.5]} 80. Kd2
{[%clk 0:00:04.6]} 80... Rc8 {[%clk 0:00:08.6]} 81. Kc2 {[%clk 0:00:05.2]} 81...
Re8 {[%clk 0:00:07.1]} 82. Kd2 {[%clk 0:00:06.1]} 82... Kd5 {[%clk 0:00:07.1]}
83. Kd3 {[%clk 0:00:06.3]} 83... Rh8 {[%clk 0:00:06.9]} 84. Nc3+ {[%clk
0:00:06.7]} 84... Kc5 {[%clk 0:00:06.6]} 85. Ne2 {[%clk 0:00:07.6]} 85... Rh3+
{[%clk 0:00:05.7]} 86. Ke4 {[%clk 0:00:08.1]} 86... Kc4 {[%clk 0:00:05.7]} 87.
Nf4 {[%clk 0:00:08.7]} 87... Rh2 {[%clk 0:00:05.6]} 88. Kf3 {[%clk 0:00:09.1]}
88... Rh1 {[%clk 0:00:06]} 89. Ne2 {[%clk 0:00:08.8]} 89... Kd3 {[%clk
0:00:06.1]} 90. Nf4+ {[%clk 0:00:09.6]} 90... Kd4 {[%clk 0:00:04.8]} 91. Ne2+
{[%clk 0:00:10]} 91... Ke5 {[%clk 0:00:05.4]} 92. Ke3 {[%clk 0:00:10.6]} 92...
Rh3+ {[%clk 0:00:05.9]} 93. Kd2 {[%clk 0:00:11.3]} 93... Ke4 {[%clk 0:00:05.8]}
94. Nc3+ {[%clk 0:00:11.8]} 94... Kd4 {[%clk 0:00:05.6]} 95. Ne2+ {[%clk
0:00:12.3]} 95... Kc4 {[%clk 0:00:06.2]} 96. Kc2 {[%clk 0:00:12.8]} 96... Rh2
{[%clk 0:00:06.7]} 97. Kd2 {[%clk 0:00:13.3]} 97... Rg2 {[%clk 0:00:06.6]} 98.
Ke3 {[%clk 0:00:13.7]} 98... Rh2 {[%clk 0:00:05.8]} 99. Nf4 {[%clk 0:00:13.3]}
99... Kc3 {[%clk 0:00:05.3]} 100. Ne2+ {[%clk 0:00:13.3]} 100... Kc2 {[%clk
0:00:05]} 101. Nd4+ {[%clk 0:00:13.5]} 101... Kd1 {[%clk 0:00:05]} 102. Nf3
{[%clk 0:00:13.4]} 102... Rh3 {[%clk 0:00:05]} 103. Kf4 {[%clk 0:00:13.5]}
103... Ke2 {[%clk 0:00:05]} 104. Ne5 {[%clk 0:00:13.7]} 104... Ra3 {[%clk
0:00:05.1]} 105. Kf5 {[%clk 0:00:13.7]} 105... Ke3 {[%clk 0:00:05]} 106. Ng4+
{[%clk 0:00:14.4]} 106... Kf3 {[%clk 0:00:05]} 107. Ne5+ {[%clk 0:00:14.9]}
107... Kg3 {[%clk 0:00:05.6]} 108. Ke6 {[%clk 0:00:15]} 108... Ra5 {[%clk
0:00:06.5]} 109. Nc6 {[%clk 0:00:15]} 109... Ra6 {[%clk 0:00:06.2]} 110. Kd6
{[%clk 0:00:14.7]} 110... Kf4 {[%clk 0:00:06.8]} 111. Kd5 {[%clk 0:00:14.9]}
111... Kf5 {[%clk 0:00:07]} 112. Nd4+ {[%clk 0:00:15.1]} 112... Kf4 {[%clk
0:00:07.2]} 113. Ne6+ {[%clk 0:00:14.8]} 113... Kf5 {[%clk 0:00:07.3]} 114. Nc5
{[%clk 0:00:14.4]} 114... Ra5 {[%clk 0:00:07.5]} 115. Kc4 {[%clk 0:00:14.6]}
115... Ra1 {[%clk 0:00:07]} 116. Nd3 {[%clk 0:00:14.9]} 116... Ke4 {[%clk
0:00:07.2]} 117. Nc5+ {[%clk 0:00:15.2]} 117... Ke5 {[%clk 0:00:07.3]} 118. Nd3+
{[%clk 0:00:15.2]} 118... Kd6 {[%clk 0:00:07.7]} 119. Kd4 {[%clk 0:00:15.4]}
119... Rd1 {[%clk 0:00:07.8]} 120. Ke3 {[%clk 0:00:15.7]} 120... Kd5 {[%clk
0:00:08.1]} 121. Nf4+ {[%clk 0:00:16.1]} 121... Ke5 {[%clk 0:00:08.2]} 1/2-1/2

[Event "*** Titled Tuesday Blitz"]
[Site "Chess.com"]
[Date "2021.03.09"]
[Round "5"]
[White "Onischuk_V"]
[Black "Nikolakis2014"]
[Result "1-0"]
[WhiteElo "2828"]
[BlackElo "2598"]
[TimeControl "180+1"]
[EndTime "11:01:57 PST"]
[Termination "Onischuk_V won by resignation"]

1. Nf3 {[%clk 0:03:00.9]} 1... Nf6 {[%clk 0:02:59.2]} 2. g3 {[%clk 0:03:01.2]}
2... g6 {[%clk 0:02:59.4]} 3. Bg2 {[%clk 0:03:01.9]} 3... Bg7 {[%clk 0:03:00.1]}
4. O-O {[%clk 0:03:02.6]} 4... O-O {[%clk 0:03:00.1]} 5. d3 {[%clk 0:03:03.3]}
5... d6 {[%clk 0:03:00.1]} 6. c4 {[%clk 0:03:02.6]} 6... Nbd7 {[%clk 0:02:57]}
7. Nc3 {[%clk 0:03:02.9]} 7... e5 {[%clk 0:02:57]} 8. Rb1 {[%clk 0:02:58.4]}
8... Re8 {[%clk 0:02:56.5]} 9. Qc2 {[%clk 0:02:54]} 9... a5 {[%clk 0:02:52.1]}
10. a3 {[%clk 0:02:53.7]} 10... Nc5 {[%clk 0:02:50.3]} 11. b4 {[%clk 0:02:52.5]}
11... axb4 {[%clk 0:02:50.7]} 12. axb4 {[%clk 0:02:52.2]} 12... Ne6 {[%clk
0:02:50.8]} 13. b5 {[%clk 0:02:49.5]} 13... Nd4 {[%clk 0:02:48.9]} 14. Nxd4
{[%clk 0:02:48.8]} 14... exd4 {[%clk 0:02:49.2]} 15. Ne4 {[%clk 0:02:49]} 15...
Nxe4 {[%clk 0:02:46.9]} 16. Bxe4 {[%clk 0:02:48.7]} 16... Bh3 {[%clk 0:02:46.7]}
17. Re1 {[%clk 0:02:47.6]} 17... Rb8 {[%clk 0:02:46.3]} 18. Ra1 {[%clk
0:02:39.7]} 18... Qc8 {[%clk 0:02:43.4]} 19. Ra7 {[%clk 0:02:36.8]} 19... h5
{[%clk 0:02:42.8]} 20. Bf4 {[%clk 0:02:32.9]} 20... h4 {[%clk 0:02:41.1]} 21. b6
{[%clk 0:02:30.9]} 21... Be5 {[%clk 0:02:34.4]} 22. Bxe5 {[%clk 0:02:22.8]}
22... Rxe5 {[%clk 0:02:30.2]} 23. bxc7 {[%clk 0:02:22.6]} 23... Qxc7 {[%clk
0:02:29.8]} 24. Rb1 {[%clk 0:02:18.8]} 24... d5 {[%clk 0:02:27.5]} 25. Bf3
{[%clk 0:02:13.5]} 25... Bf5 {[%clk 0:02:17.4]} 26. c5 {[%clk 0:02:09.1]} 26...
g5 {[%clk 0:02:13.1]} 27. c6 {[%clk 0:02:06.5]} 27... g4 {[%clk 0:02:08.1]} 28.
Bg2 {[%clk 0:01:56.2]} 28... Bd7 {[%clk 0:01:43.9]} 29. Raxb7 {[%clk 0:01:25.3]}
29... Rxb7 {[%clk 0:01:42.4]} 30. Rxb7 {[%clk 0:01:25.5]} 30... Qxc6 {[%clk
0:01:41.9]} 31. Qxc6 {[%clk 0:01:24.5]} 31... Bxc6 {[%clk 0:01:41.7]} 32. Rb8+
{[%clk 0:01:25]} 32... Kg7 {[%clk 0:01:41.4]} 33. Bf1 {[%clk 0:01:25.3]} 33...
Ba4 {[%clk 0:01:31.4]} 34. Rb4 {[%clk 0:01:21.7]} 34... Bd1 {[%clk 0:01:31.1]}
35. Rxd4 {[%clk 0:01:21.1]} 35... f5 {[%clk 0:01:25.8]} 36. e3 {[%clk
0:01:11.5]} 36... h3 {[%clk 0:01:21.5]} 37. Rb4 {[%clk 0:00:54.9]} 37... Bf3
{[%clk 0:01:19.8]} 38. d4 {[%clk 0:00:54.1]} 38... Re7 {[%clk 0:01:17.4]} 39.
Bd3 {[%clk 0:00:49.6]} 39... Kf6 {[%clk 0:01:06]} 40. Rb6+ {[%clk 0:00:47.9]}
40... Kg5 {[%clk 0:01:06.1]} 41. Kf1 {[%clk 0:00:44.8]} 41... Rc7 {[%clk
0:00:59.4]} 42. Rb1 {[%clk 0:00:35.4]} 42... Rc3 {[%clk 0:00:58.2]} 43. Be2
{[%clk 0:00:33.4]} 43... Rc2 {[%clk 0:00:58]} 44. Bd1 {[%clk 0:00:24.7]} 44...
Ra2 {[%clk 0:00:56]} 45. Ke1 {[%clk 0:00:24]} 45... Kf6 {[%clk 0:00:54.1]} 46.
Rc1 {[%clk 0:00:23.1]} 46... Ke7 {[%clk 0:00:53.4]} 47. Bc2 {[%clk 0:00:23.2]}
47... Kd6 {[%clk 0:00:52.7]} 48. Bxf5 {[%clk 0:00:22.5]} 48... Re2+ {[%clk
0:00:51.9]} 49. Kf1 {[%clk 0:00:22.4]} 49... Rd2 {[%clk 0:00:52.2]} 50. Bc2
{[%clk 0:00:17.3]} 50... Ke7 {[%clk 0:00:51.2]} 51. Ba4 {[%clk 0:00:17]} 51...
Kd6 {[%clk 0:00:49.5]} 52. Bb5 {[%clk 0:00:16.4]} 52... Rb2 {[%clk 0:00:48.3]}
53. Ba4 {[%clk 0:00:13.9]} 53... Rd2 {[%clk 0:00:45.3]} 54. Rb1 {[%clk
0:00:13.6]} 54... Ra2 {[%clk 0:00:42.3]} 55. Bd1 {[%clk 0:00:12.8]} 55... Rd2
{[%clk 0:00:38.6]} 56. Ke1 {[%clk 0:00:12.8]} 56... Ra2 {[%clk 0:00:38.7]} 57.
Rc1 {[%clk 0:00:12.6]} 57... Rb2 {[%clk 0:00:38]} 58. Bc2 {[%clk 0:00:11.6]}
58... Ra2 {[%clk 0:00:34.5]} 59. Kd2 {[%clk 0:00:11.8]} 59... Ra3 {[%clk
0:00:34.5]} 60. Rb1 {[%clk 0:00:10.9]} 60... Ra2 {[%clk 0:00:34.8]} 61. Kc3
{[%clk 0:00:10.8]} 61... Ra3+ {[%clk 0:00:32.5]} 62. Bb3 {[%clk 0:00:10.5]}
62... Ra6 {[%clk 0:00:32]} 63. Rc1 {[%clk 0:00:09.8]} 63... Rb6 {[%clk
0:00:31.2]} 64. Ra1 {[%clk 0:00:08.3]} 64... Rc6+ {[%clk 0:00:31.1]} 65. Kb2
{[%clk 0:00:08.4]} 65... Rb6 {[%clk 0:00:31.3]} 66. Ra3 {[%clk 0:00:08.3]} 66...
Be4 {[%clk 0:00:30.7]} 67. Ra5 {[%clk 0:00:06.8]} 67... Bf3 {[%clk 0:00:28]} 68.
Kc3 {[%clk 0:00:06.6]} 68... Rc6+ {[%clk 0:00:26.6]} 69. Kd2 {[%clk 0:00:06.9]}
69... Rb6 {[%clk 0:00:26.7]} 70. Bc2 {[%clk 0:00:07.5]} 70... Rb2 {[%clk
0:00:24.8]} 71. Kc3 {[%clk 0:00:07.6]} 71... Rb6 {[%clk 0:00:24.6]} 72. Bd3
{[%clk 0:00:08.3]} 72... Rc6+ {[%clk 0:00:24.1]} 73. Kd2 {[%clk 0:00:08.6]}
73... Rb6 {[%clk 0:00:24.2]} 74. Ra6 {[%clk 0:00:08.7]} 74... Kc7 {[%clk
0:00:20.8]} 75. Rxb6 {[%clk 0:00:08.2]} 75... Kxb6 {[%clk 0:00:21.2]} 76. Kc3
{[%clk 0:00:08.5]} 76... Ka5 {[%clk 0:00:21.3]} 77. Kb3 {[%clk 0:00:08.2]} 77...
Bg2 {[%clk 0:00:20.3]} 78. Bf5 {[%clk 0:00:07.7]} 78... Bf3 {[%clk 0:00:20.3]}
79. Bd7 {[%clk 0:00:07.7]} 79... Kb6 {[%clk 0:00:20.1]} 80. Kb4 {[%clk
0:00:07.7]} 80... Be2 {[%clk 0:00:19.8]} 81. Be6 {[%clk 0:00:07.5]} 81... Bf3
{[%clk 0:00:20]} 82. Bf5 {[%clk 0:00:07.2]} 82... Be2 {[%clk 0:00:19.9]} 83. Bd7
{[%clk 0:00:06.9]} 83... Bf3 {[%clk 0:00:20.1]} 84. Be6 {[%clk 0:00:07.1]} 84...
Kc6 {[%clk 0:00:17.2]} 85. Ka5 {[%clk 0:00:07.3]} 85... Kd6 {[%clk 0:00:17.4]}
86. Bf5 {[%clk 0:00:07.4]} 86... Be2 {[%clk 0:00:17.8]} 87. Kb6 {[%clk
0:00:07.1]} 87... Bf3 {[%clk 0:00:18.1]} 88. Kb7 {[%clk 0:00:06.6]} 88... Be2
{[%clk 0:00:17.1]} 89. Kc8 {[%clk 0:00:06.9]} 89... Ke7 {[%clk 0:00:15.5]} 90.
Kc7 {[%clk 0:00:07.1]} 90... Kf6 {[%clk 0:00:15.4]} 91. Bc2 {[%clk 0:00:06.1]}
91... Ke6 {[%clk 0:00:15.6]} 92. Kc6 {[%clk 0:00:06.4]} 92... Bf3 {[%clk
0:00:14.8]} 93. Kc5 {[%clk 0:00:06.9]} 93... Bg2 {[%clk 0:00:14.3]} 94. e4
{[%clk 0:00:06.8]} 94... dxe4 {[%clk 0:00:12.8]} 95. d5+ {[%clk 0:00:07.1]}
95... Ke5 {[%clk 0:00:12.4]} 96. d6 {[%clk 0:00:07.2]} 96... Ke6 {[%clk
0:00:12.4]} 97. Bb3+ {[%clk 0:00:07.2]} 97... Kd7 {[%clk 0:00:12.4]} 98. Ba4+
{[%clk 0:00:07.3]} 98... Ke6 {[%clk 0:00:12.3]} 99. Bb5 {[%clk 0:00:07]} 99...
Bf3 {[%clk 0:00:11.4]} 100. Bc6 {[%clk 0:00:06]} 100... Bg2 {[%clk 0:00:09.9]}
101. Bb7 {[%clk 0:00:06]} 101... Kd7 {[%clk 0:00:09.7]} 102. Bd5 {[%clk
0:00:06]} 102... Bf3 {[%clk 0:00:09.1]} 103. Bf7 {[%clk 0:00:06]} 103... Bg2
{[%clk 0:00:09.1]} 104. Bg6 {[%clk 0:00:05.4]} 104... Bf3 {[%clk 0:00:09.4]}
105. Bf5+ {[%clk 0:00:05.4]} 105... Kd8 {[%clk 0:00:09.6]} 106. Kd4 {[%clk
0:00:06]} 106... Ke8 {[%clk 0:00:07.7]} 107. Ke5 {[%clk 0:00:06.4]} 107... Kd8
{[%clk 0:00:07]} 108. Bxe4 {[%clk 0:00:07]} 108... Be2 {[%clk 0:00:07.1]} 109.
Bf5 {[%clk 0:00:07.3]} 109... Bd1 {[%clk 0:00:07.1]} 110. Kf4 {[%clk 0:00:07.8]}
1-0

[Event "*** Titled Tuesday Blitz"]
[Site "Chess.com"]
[Date "2021.03.09"]
[Round "6"]
[White "Ze-Pequeno"]
[Black "ljuks68"]
[Result "0-1"]
[WhiteElo "2258"]
[BlackElo "2440"]
[TimeControl "180+1"]
[EndTime "11:04:15 PST"]
[Termination "ljuks68 won by resignation"]

1. e4 {[%clk 0:03:00]} 1... e6 {[%clk 0:03:00]} 2. d4 {[%clk 0:02:59.7]} 2... d5
{[%clk 0:03:00.4]} 3. Nc3 {[%clk 0:03:00.6]} 3... Bb4 {[%clk 0:02:59.9]} 4. e5
{[%clk 0:03:00.9]} 4... Ne7 {[%clk 0:03:00]} 5. a3 {[%clk 0:03:01.8]} 5... Bxc3+
{[%clk 0:02:59.9]} 6. bxc3 {[%clk 0:03:02.7]} 6... c5 {[%clk 0:02:59.8]} 7. Qg4
{[%clk 0:03:02.4]} 7... Qc7 {[%clk 0:02:59.8]} 8. Qxg7 {[%clk 0:03:01.8]} 8...
Rg8 {[%clk 0:03:00.2]} 9. Qxh7 {[%clk 0:03:02.7]} 9... cxd4 {[%clk 0:03:00.5]}
10. Ne2 {[%clk 0:03:03.3]} 10... Nbc6 {[%clk 0:03:00.2]} 11. f4 {[%clk
0:03:03.6]} 11... Bd7 {[%clk 0:03:00.2]} 12. Qd3 {[%clk 0:03:03.8]} 12... dxc3
{[%clk 0:03:00.1]} 13. Nxc3 {[%clk 0:03:04.7]} 13... Qa5 {[%clk 0:02:59.9]} 14.
Bd2 {[%clk 0:03:03.8]} 14... Nb4 {[%clk 0:02:57.5]} 0-1

[Event "*** Titled Tuesday Blitz"]
[Site "Chess.com"]
[Date "2021.03.09"]
[Round "6"]
[White "andrewtnb"]
[Black "FMalexhdez"]
[Result "1-0"]
[WhiteElo "2325"]
[BlackElo "2175"]
[TimeControl "180+1"]
[EndTime "11:05:17 PST"]
[Termination "andrewtnb won by resignation"]

1. d4 {[%clk 0:03:00.9]} 1... Nf6 {[%clk 0:02:59.3]} 2. c4 {[%clk 0:02:58.9]}
2... e6 {[%clk 0:02:59.5]} 3. Nc3 {[%clk 0:02:57.6]} 3... Bb4 {[%clk 0:03:00]}
4. e3 {[%clk 0:02:57.7]} 4... c5 {[%clk 0:02:59.6]} 5. Ne2 {[%clk 0:02:57.1]}
5... d5 {[%clk 0:02:58.8]} 6. a3 {[%clk 0:02:55.3]} 6... cxd4 {[%clk 0:02:38.8]}
7. axb4 {[%clk 0:02:49.2]} 7... dxc3 {[%clk 0:02:36.9]} 8. Nxc3 {[%clk
0:02:49.1]} 8... O-O {[%clk 0:02:37]} 9. cxd5 {[%clk 0:02:40.8]} 9... exd5
{[%clk 0:02:27.9]} 10. Be2 {[%clk 0:02:40.9]} 10... Nc6 {[%clk 0:02:25.7]} 11.
b5 {[%clk 0:02:40.3]} 11... Ne5 {[%clk 0:02:25.1]} 12. O-O {[%clk 0:02:38.5]}
12... Bf5 {[%clk 0:02:19]} 13. Qd4 {[%clk 0:02:36.7]} 13... b6 {[%clk
0:02:16.4]} 14. Qxe5 {[%clk 0:02:35.1]} 1-0

[Event "*** Titled Tuesday Blitz"]
[Site "Chess.com"]
[Date "2021.03.09"]
[Round "6"]
[White "Fraler15"]
[Black "Leo_C"]
[Result "1-0"]
[WhiteElo "2293"]
[BlackElo "2428"]
[TimeControl "180+1"]
[EndTime "11:06:22 PST"]
[Termination "Fraler15 won by resignation"]

1. e4 {[%clk 0:03:00.9]} 1... Nf6 {[%clk 0:02:47.2]} 2. e5 {[%clk 0:03:00.3]}
2... Nd5 {[%clk 0:02:45.2]} 3. c4 {[%clk 0:03:00.8]} 3... Nb6 {[%clk 0:02:44.8]}
4. d4 {[%clk 0:03:01.4]} 4... d6 {[%clk 0:02:44.9]} 5. exd6 {[%clk 0:03:02.3]}
5... cxd6 {[%clk 0:02:45.8]} 6. Nc3 {[%clk 0:03:02.2]} 6... g6 {[%clk 0:02:46]}
7. a4 {[%clk 0:02:55.1]} 7... a5 {[%clk 0:02:40.8]} 8. c5 {[%clk 0:02:54.6]}
8... dxc5 {[%clk 0:02:31.4]} 9. Bb5+ {[%clk 0:02:53.9]} 9... Nc6 {[%clk
0:02:18.7]} 10. d5 {[%clk 0:02:46.5]} 10... Bd7 {[%clk 0:01:43.6]} 11. dxc6
{[%clk 0:02:45.7]} 11... bxc6 {[%clk 0:01:44.5]} 12. Be2 {[%clk 0:02:43.6]}
12... Bg7 {[%clk 0:01:44]} 13. Nf3 {[%clk 0:02:42.9]} 13... O-O {[%clk
0:01:43.4]} 14. O-O {[%clk 0:02:42.6]} 14... e6 {[%clk 0:01:41.2]} 15. Be3
{[%clk 0:02:40.3]} 15... Qe7 {[%clk 0:01:37.8]} 16. Ne4 {[%clk 0:02:38.4]} 16...
Bxb2 {[%clk 0:01:29.6]} 17. Bxc5 {[%clk 0:02:37.6]} 17... Qd8 {[%clk 0:01:24.8]}
18. Rb1 {[%clk 0:02:36.8]} 1-0

[Event "*** Titled Tuesday Blitz"]
[Site "Chess.com"]
[Date "2021.03.09"]
[Round "6"]
[White "Aradhya2000"]
[Black "A-Fier"]
[Result "1-0"]
[WhiteElo "2559"]
[BlackElo "2683"]
[TimeControl "180+1"]
[EndTime "11:06:27 PST"]
[Termination "Aradhya2000 won by resignation"]

1. d4 {[%clk 0:03:00.9]} 1... Nf6 {[%clk 0:03:00.7]} 2. c4 {[%clk 0:03:00.7]}
2... c5 {[%clk 0:03:01.6]} 3. d5 {[%clk 0:03:00.5]} 3... e6 {[%clk 0:03:02.4]}
4. Nf3 {[%clk 0:02:52.2]} 4... exd5 {[%clk 0:03:03.3]} 5. cxd5 {[%clk
0:02:51.9]} 5... d6 {[%clk 0:03:04.2]} 6. e4 {[%clk 0:02:52.2]} 6... g6 {[%clk
0:03:04.9]} 7. Bd3 {[%clk 0:02:52.2]} 7... Bg7 {[%clk 0:03:05.6]} 8. O-O {[%clk
0:02:52.6]} 8... O-O {[%clk 0:03:06.2]} 9. h3 {[%clk 0:02:52.8]} 9... Nbd7
{[%clk 0:03:04.7]} 10. Re1 {[%clk 0:02:50.2]} 10... Re8 {[%clk 0:03:04.8]} 11.
Nbd2 {[%clk 0:02:49]} 11... Nh5 {[%clk 0:03:03.8]} 12. a4 {[%clk 0:02:44.6]}
12... Ne5 {[%clk 0:03:03.1]} 13. Nxe5 {[%clk 0:02:41.4]} 13... Bxe5 {[%clk
0:03:04]} 14. Nc4 {[%clk 0:02:41.4]} 14... Bg7 {[%clk 0:03:03]} 15. Qf3 {[%clk
0:02:35.7]} 15... Be5 {[%clk 0:02:51.4]} 16. g4 {[%clk 0:02:21.9]} 16... Ng7
{[%clk 0:02:51.1]} 17. Nxe5 {[%clk 0:02:21.2]} 17... dxe5 {[%clk 0:02:51.4]} 18.
Be3 {[%clk 0:02:17.1]} 18... b6 {[%clk 0:02:51.4]} 19. a5 {[%clk 0:02:16.6]}
19... Rb8 {[%clk 0:02:51.6]} 20. axb6 {[%clk 0:02:15.9]} 20... axb6 {[%clk
0:02:52.5]} 21. Bb5 {[%clk 0:01:57.2]} 21... Re7 {[%clk 0:02:51.8]} 22. Bg5
{[%clk 0:01:51.9]} 22... Bd7 {[%clk 0:02:49.9]} 23. d6 {[%clk 0:01:37.9]} 23...
Bxb5 {[%clk 0:02:49.7]} 24. dxe7 {[%clk 0:01:38.1]} 24... Qe8 {[%clk 0:02:49.3]}
25. Rad1 {[%clk 0:01:36.9]} 25... Ne6 {[%clk 0:02:49.7]} 26. Qf6 {[%clk
0:01:36.3]} 26... Bd7 {[%clk 0:02:45.1]} 27. Rd6 {[%clk 0:01:32.3]} 1-0

[Event "*** Titled Tuesday Blitz"]
[Site "Chess.com"]
[Date "2021.03.09"]
[Round "6"]
[White "PowerThinking2650"]
[Black "Magila31"]
[Result "1-0"]
[WhiteElo "2419"]
[BlackElo "2215"]
[TimeControl "180+1"]
[EndTime "11:06:34 PST"]
[Termination "PowerThinking2650 won by resignation"]

1. e4 {[%clk 0:03:00.9]} 1... e5 {[%clk 0:02:57.6]} 2. Nf3 {[%clk 0:03:00.5]}
2... Nc6 {[%clk 0:02:56.9]} 3. Nc3 {[%clk 0:03:00.4]} 3... Nf6 {[%clk 0:02:53]}
4. d4 {[%clk 0:03:00.1]} 4... exd4 {[%clk 0:02:46.7]} 5. Nxd4 {[%clk 0:03:01]}
5... Bb4 {[%clk 0:02:44.7]} 6. Nxc6 {[%clk 0:03:00.8]} 6... bxc6 {[%clk
0:02:43.7]} 7. Bd3 {[%clk 0:03:01.4]} 7... d5 {[%clk 0:02:37.2]} 8. exd5 {[%clk
0:03:02.3]} 8... cxd5 {[%clk 0:02:37]} 9. O-O {[%clk 0:03:02]} 9... O-O {[%clk
0:02:36.3]} 10. Bg5 {[%clk 0:03:01.3]} 10... Be7 {[%clk 0:02:35.5]} 11. Bxf6
{[%clk 0:02:55.2]} 11... Bxf6 {[%clk 0:02:34.7]} 12. Qh5 {[%clk 0:02:55.3]}
12... g6 {[%clk 0:02:29.3]} 13. Qxd5 {[%clk 0:02:54.5]} 13... Qxd5 {[%clk
0:02:13.8]} 14. Nxd5 {[%clk 0:02:53.9]} 14... Bxb2 {[%clk 0:02:12.8]} 15. Rab1
{[%clk 0:02:42]} 15... Be5 {[%clk 0:02:07.9]} 16. Ne7+ {[%clk 0:02:38.8]} 16...
Kg7 {[%clk 0:02:05.6]} 17. Be4 {[%clk 0:02:38.9]} 17... c6 {[%clk 0:02:01.4]}
18. Nxc6 {[%clk 0:02:07.1]} 18... Ba6 {[%clk 0:01:59.7]} 19. Nxe5 {[%clk
0:02:04.6]} 19... Rae8 {[%clk 0:01:53.1]} 20. Bd3 {[%clk 0:01:57.1]} 1-0